[Event "FIDE Open World Rapid 2024"]
[Site "New York"]
[Date "2024.12.27"]
[Round "6.12"]
[White "Mamedyarov, Shakhriyar"]
[Black "Shimanov, Aleksandr"]
[Result "1-0"]
[ECO "D43"]
[WhiteElo "2738"]
[BlackElo "2593"]
[Annotator "TA"]
[PlyCount "71"]
[EventDate "2024.12.14"]
[EventType "swiss"]
[EventCountry "USA"]
[SourceTitle "playchess.com"]
[Source "ChessBase"]
[SourceQuality "1"]
[TimeControl "900+10"]

{[%evp 13,71,0,-20,-11,14,-8,0,0,0,0,0,0,0,0,0,0,0,0,10,0,23,6,15,15,44,64,152,39,47,26,64,63,65,52,70,55,131,124,143,139,139,69,71,59,133,0,0,0,0,0,0,0,0,0,0,0,5226,5210,29993,379]} 1. d4 {[%emt 0:00:04]} d5 {[%emt 0:00:04]} 2. c4 {[%emt 0:00:01]} c6 {[%emt 0:00:01]} 3. Nf3 {[%emt 0:00:03]} Nf6 {[%emt 0:00:02]} 4. Nc3 {[%emt 0:00:07]} a6 {[%emt 0:00:07]} 5. Qb3 {[%emt 0:00:39]} dxc4 {[%emt 0:01:07]} 6. Qxc4 {[%emt 0:00:01]} b5 {[%emt 0:00:24]} 7. Qb3 {[%emt 0:00:10]} e6 {[%emt 0:00:49]} 8. Bg5 {[%emt 0:00:18]} c5 {[%emt 0:01:03]} 9. Rd1 {[%emt 0:00:46]} c4 {[%emt 0:01:32]} 10. Qc2 {[%emt 0:00:02][%cal Od4d5]} Be7 {[%emt 0:00:05]} 11. e4 {[%emt 0:00:16]} Bb7 {[%emt 0:00:07]} 12. Be2 {[%emt 0:00:24]} O-O {[%emt 0:00:20]} 13. O-O {[%emt 0:00:25][%cal Od4d5]} Nbd7 {[%emt 0:00:08]} 14. a3 {[%emt 0:01:46]} h6 {[%emt 0:01:01]} 15. Bf4 {[%emt 0:00:20]} Nb6 {[%emt 0:00:42]} 16. Rfe1 {[%emt 0:01:01]} Qc8 {[%emt 0:03:30]} 17. Bf1 {[%emt 0:00:23]} Rd8 {[%emt 0:00:11]} 18. g3 {[%emt 0:00:12]} Qd7 {[%emt 0:00:56]} 19. Bh3 {[%emt 0:00:27][%cal Od4d5]} Qc6 {[%emt 0:00:41]} ({Better is} 19... b4 $14 20. axb4 Bxb4) 20. Bg2 {[%emt 0:01:38]} (20. d5 $1 $16 {[%cal Rd5c6]} Nfxd5 (20... exd5 21. Nd4 $16) 21. exd5 Nxd5 22. Nxd5 Rxd5 23. Bg2) 20... Qc8 {[%emt 0:02:51]} 21. h3 {[%emt 0:00:50][%cal Bh2h3,Bh3h4,Bh4g5][%mdl 32]} b4 {[%emt 0:00:16]} 22. axb4 {[%emt 0:00:06]} Bxb4 {[%emt 0:00:01]} 23. g4 {[%emt 0:00:21]} Nh7 {[%emt 0:00:24]} 24. h4 {[%emt 0:01:13]} Be7 {[%emt 0:00:31]} (24... Nf8 $14) 25. g5 {[%emt 0:00:18]} hxg5 {[%emt 0:00:02]} 26. hxg5 {[%emt 0:00:01][%cal Od4d5]} Nf8 {[%emt 0:00:05] [#]} 27. d5 {[%emt 0:01:25]} exd5 $14 {[%emt 0:00:40]} 28. exd5 {[%emt 0:00:01]} Ng6 {[%emt 0:00:05] [#]} (28... Bb4 $14) 29. Qe4 {[%emt 0:03:54] White is much more active.} ({White has to play} 29. Bg3 $1 $16) 29... Nxd5 $11 {[%emt 0:01:40]} 30. Nxd5 {[%emt 0:00:07]} Rxd5 {[%emt 0:00:08]} 31. Rxd5 {[%emt 0:00:01]} Bxd5 {[%emt 0:00:04]} 32. Qxd5 {[%emt 0:00:01]} Nxf4 {[%emt 0:00:01]} 33. Qe4 {[%emt 0:00:03]} Nxg2 {[%emt 0:00:42]} 34. Kxg2 {[%emt 0:00:05][%cal Oe1h1] aiming for Rh1!.} Bf8 $2 {[%emt 0:00:09][%mdl 8192]} (34... g6 $11) 35. g6 $18 {[%emt 0:00:02] Intending Qh4 and mate.} Ra7 {[%emt 0:00:12]} 36. Ne5 $2 {[%emt 0:00:01]} (36. Ng5 {mates} Be7 37. gxf7+ (37. Nxf7 Qb7 $18) 37... Kf8 38. Qh7 (38. Rh1 Bxg5 39. Rh8+ Kxf7 $18) 38... Qg4+ 39. Kf1 Qh3+ 40. Qxh3 (40. Nxh3 Kxf7 41. Qf5+ Ke8 42. Qc5 Kf7 43. Qxa7 Kg8 44. Rxe7 Kh7 45. Rxg7+ Kh8 46. Rh7+ Kg8 47. Qg7#) 40... Bxg5 41. Re8+ Kxf7 42. Qe6#) 1-0

[Event "FIDE Open World Rapid 2024"]
[Site "New York"]
[Date "2024.12.27"]
[Round "6.12"]
[White "Christiansen, Johan-Sebastian"]
[Black "Sarana, Alexey"]
[Result "1/2-1/2"]
[ECO "B50"]
[WhiteElo "2661"]
[BlackElo "2674"]
[Annotator "ChessBase"]
[PlyCount "70"]
[EventDate "2024.12.14"]
[EventType "swiss"]
[EventCountry "USA"]
[SourceTitle "playchess.com"]
[Source "ChessBase"]
[SourceQuality "1"]
[TimeControl "900+10"]

1. e4 {[%emt 0:00:02]} c5 {[%emt 0:00:00]} 2. Nf3 {[%emt 0:00:04]} d6 {[%emt 0:00:02]} 3. c3 {[%emt 0:00:07]} Nf6 {[%emt 0:00:02]} 4. Be2 {[%emt 0:00:02]} g6 {[%emt 0:00:09]} 5. O-O {[%emt 0:00:06]} Bg7 {[%emt 0:00:02]} 6. Bb5+ {[%emt 0:00:03]} Nc6 {[%emt 0:00:33]} 7. d4 {[%emt 0:00:01]} a6 {[%emt 0:00:01]} 8. Be2 {[%emt 0:01:29]} cxd4 {[%emt 0:00:11]} 9. cxd4 {[%emt 0:00:01]} O-O {[%emt 0:00:01]} 10. d5 {[%emt 0:00:37]} Na7 {[%emt 0:00:02]} 11. Nc3 {[%emt 0:00:24]} Nb5 {[%emt 0:00:21]} 12. Nxb5 {[%emt 0:01:01]} axb5 {[%emt 0:00:02]} 13. Bd3 {[%emt 0:00:30]} Bg4 {[%emt 0:02:12]} 14. h3 {[%emt 0:00:05]} Bxf3 {[%emt 0:00:02]} 15. Qxf3 {[%emt 0:00:01]} b4 {[%emt 0:00:02]} 16. Qe2 {[%emt 0:00:09]} Nd7 {[%emt 0:00:04]} 17. Bg5 {[%emt 0:00:36]} Nc5 {[%emt 0:00:24]} 18. Bc4 {[%emt 0:00:08]} Qc7 {[%emt 0:01:20]} 19. Rac1 {[%emt 0:01:57]} Rfc8 {[%emt 0:00:12]} 20. h4 {[%emt 0:00:13]} b5 {[%emt 0:02:17]} 21. Bb3 {[%emt 0:00:25]} Qd7 {[%emt 0:00:27]} 22. h5 {[%emt 0:00:09]} h6 {[%emt 0:00:31]} 23. Be3 {[%emt 0:00:21]} g5 {[%emt 0:01:11]} 24. f4 {[%emt 0:03:29]} Nxb3 {[%emt 0:01:07]} 25. Rxc8+ {[%emt 0:00:20]} Rxc8 {[%emt 0:00:56]} 26. axb3 {[%emt 0:00:02]} gxf4 {[%emt 0:01:06]} 27. Rxf4 {[%emt 0:00:37]} Rf8 {[%emt 0:00:17]} 28. Rg4 {[%emt 0:00:08]} Kh7 {[%emt 0:00:04]} 29. Qf3 {[%emt 0:01:45]} Be5 {[%emt 0:00:10]} 30. Rg6 {[%emt 0:04:16]} Bg7 {[%emt 0:02:05]} 31. Rg4 {[%emt 0:00:27]} Be5 {[%emt 0:01:19]} 32. Rg6 {[%emt 0:00:01]} Bg7 {[%emt 0:01:38]} 33. Rg4 {[%emt 0:00:26]} Be5 {[%emt 0:00:18]} 34. Rg6 {[%emt 0:00:20]} Bg7 {[%emt 0:01:04]} 35. Rg4 {[%emt 0:00:13]} Be5 {[%emt 0:00:01]} 1/2-1/2

[Event "FIDE Open World Rapid 2024"]
[Site "New York"]
[Date "2024.12.27"]
[Round "6.13"]
[White "Yu, Yangyi"]
[Black "Lomasov, Semyon"]
[Result "1/2-1/2"]
[ECO "E44"]
[WhiteElo "2724"]
[BlackElo "2559"]
[Annotator "TA"]
[PlyCount "63"]
[EventDate "2024.12.14"]
[EventType "swiss"]
[EventCountry "USA"]
[SourceTitle "playchess.com"]
[Source "ChessBase"]
[SourceQuality "1"]
[TimeControl "900+10"]

{[%evp 16,63,8,16,12,10,5,-5,-3,-29,0,-22,-29,-18,-22,-25,-17,-22,0,-21,-12,-23,0,0,0,0,0,0,0,0,22,27,20,0,0,0,0,0,39,0,8,0,0,0,0,0,0,0,0,0]} 1. d4 {[%emt 0:00:02]} e6 {[%emt 0:00:05]} 2. c4 {[%emt 0:00:02]} Nf6 {[%emt 0:00:01]} 3. Nc3 {[%emt 0:00:02]} Bb4 {[%emt 0:00:02]} 4. e3 {[%emt 0:00:01]} b6 {[%emt 0:00:22]} 5. Nge2 {[%emt 0:00:20]} Ne4 {[%emt 0:00:10]} 6. Qc2 {[%emt 0:00:57]} Bb7 {[%emt 0:00:14]} 7. a3 {[%emt 0:00:09]} Bxc3+ {[%emt 0:00:01]} 8. Nxc3 {[%emt 0:00:01]} Nxc3 {[%emt 0:00:02]} 9. Qxc3 {[%emt 0:00:02]} d6 {[%emt 0:00:14]} 10. h4 {[%emt 0:00:22]} Nd7 {[%emt 0:00:59]} 11. b4 {[%emt 0:00:33]} a5 {[%emt 0:00:27]} 12. b5 {[%emt 0:00:05]} f5 {[%emt 0:00:40]} 13. Bb2 {[%emt 0:00:21]} Qe7 {[%emt 0:00:29]} 14. O-O-O {[%emt 0:01:26]} O-O-O {[%emt 0:00:15]} 15. Qc2 {[%emt 0:02:22]} Rhg8 {[%emt 0:01:48]} 16. f3 {[%emt 0:00:56]} h6 {[%emt 0:00:39]} 17. Bd3 {[%emt 0:00:47]} g5 {[%emt 0:00:24]} 18. hxg5 {[%emt 0:00:02]} Qxg5 {[%emt 0:00:15]} 19. Rde1 {[%emt 0:00:49]} Qxg2 {[%emt 0:00:30]} 20. Qxg2 {[%emt 0:00:06]} Rxg2 {[%emt 0:00:01]} 21. Rxh6 {[%emt 0:00:02]} Bxf3 {[%emt 0:01:39]} 22. Rxe6 {[%emt 0:00:07]} Be4 {[%emt 0:00:33]} 23. Bxe4 {[%emt 0:01:39]} fxe4 {[%emt 0:00:01]} 24. Rxe4 {[%emt 0:01:17]} Rh8 {[%emt 0:00:14]} 25. Kb1 {[%emt 0:00:03]} Rhh2 {[%emt 0:01:05]} 26. Bc1 {[%emt 0:00:00]} Rc2 {[%emt 0:00:33]} 27. Re8+ {[%emt 0:00:48]} (27. Rh1 $5) 27... Kb7 {[%emt 0:00:01]} 28. Re7 {[%emt 0:00:02]} Nf6 {[%emt 0:00:33][%cal Od6d5]} 29. Re6 {[%emt 0:00:35]} Nd7 {[%emt 0:01:39]} 30. Re7 {[%emt 0:00:34]} Nf6 {[%emt 0:00:02][%cal Od6d5] and ...d5! should not be overlooked} 31. Re6 {[%emt 0:00:01]} Nd7 {[%emt 0:01:38]} 32. Re7 {[%emt 0:01:34]} 1/2-1/2

[Event "FIDE Open World Rapid 2024"]
[Site "New York"]
[Date "2024.12.27"]
[Round "6.13"]
[White "Van Foreest, Jorden"]
[Black "Wagner, Dennis"]
[Result "1-0"]
[ECO "C50"]
[WhiteElo "2677"]
[BlackElo "2616"]
[Annotator "ChessBase"]
[PlyCount "89"]
[EventDate "2024.12.14"]
[EventType "swiss"]
[EventCountry "USA"]
[SourceTitle "playchess.com"]
[Source "ChessBase"]
[SourceQuality "1"]
[TimeControl "900+10"]

1. e4 {[%emt 0:00:03]} e5 {[%emt 0:00:04]} 2. Nf3 {[%emt 0:00:02]} Nc6 {[%emt 0:00:03]} 3. Bc4 {[%emt 0:00:03]} Bc5 {[%emt 0:00:03]} 4. d3 {[%emt 0:00:10]} Nf6 {[%emt 0:00:05]} 5. Nc3 {[%emt 0:00:04]} h6 {[%emt 0:00:19]} 6. h3 {[%emt 0:00:14]} a6 {[%emt 0:00:06]} 7. Bb3 {[%emt 0:00:56]} d6 {[%emt 0:00:40]} 8. Ne2 {[%emt 0:00:07]} Na5 {[%emt 0:01:13]} 9. Ng3 {[%emt 0:00:13]} Nxb3 {[%emt 0:00:47]} 10. axb3 {[%emt 0:00:04]} O-O {[%emt 0:00:22]} 11. O-O {[%emt 0:00:04]} Re8 {[%emt 0:00:39]} 12. c4 {[%emt 0:00:06]} c6 {[%emt 0:00:38]} 13. Bd2 {[%emt 0:00:15]} d5 {[%emt 0:02:06]} 14. Re1 {[%emt 0:00:10]} Qb6 {[%emt 0:02:53]} 15. Re2 {[%emt 0:02:02]} d4 {[%emt 0:02:09]} 16. Ba5 {[%emt 0:00:37]} Qa7 {[%emt 0:00:00]} 17. b4 {[%emt 0:00:27]} Bb6 {[%emt 0:00:57]} 18. Qd2 {[%emt 0:00:46]} Bxa5 {[%emt 0:01:07]} 19. Rxa5 {[%emt 0:01:20]} Qb8 {[%emt 0:00:01]} 20. Re1 {[%emt 0:00:01]} Bd7 {[%emt 0:00:44]} 21. Rea1 {[%emt 0:00:28]} Kh7 {[%emt 0:00:20]} 22. Nh4 {[%emt 0:01:05]} Ng8 {[%emt 0:00:51]} 23. Rf1 {[%emt 0:00:07]} f6 {[%emt 0:00:20]} 24. Nf3 {[%emt 0:01:54]} Ne7 {[%emt 0:00:20]} 25. Nh2 {[%emt 0:00:06]} Ng6 {[%emt 0:00:07]} 26. Ne2 {[%emt 0:00:02]} Qd6 {[%emt 0:00:37]} 27. f4 {[%emt 0:00:18]} Nxf4 {[%emt 0:00:30]} 28. Nxf4 {[%emt 0:00:02]} exf4 {[%emt 0:00:02]} 29. Rxf4 {[%emt 0:00:32]} b6 {[%emt 0:00:57]} 30. c5 {[%emt 0:01:04]} bxc5 {[%emt 0:00:24]} 31. bxc5 {[%emt 0:00:04]} Qc7 {[%emt 0:00:14]} 32. Rf2 {[%emt 0:01:03]} Reb8 {[%emt 0:00:04]} 33. Nf3 {[%emt 0:02:21]} Rxb2 {[%emt 0:00:22]} 34. Qxb2 {[%emt 0:00:01]} Qxa5 {[%emt 0:00:01]} 35. Qxd4 {[%emt 0:00:01]} Qc7 {[%emt 0:00:20]} 36. e5 {[%emt 0:00:11]} f5 {[%emt 0:00:23]} 37. Qd6 {[%emt 0:00:04]} Qxd6 {[%emt 0:00:09]} 38. exd6 {[%emt 0:00:08]} Ra7 {[%emt 0:00:20]} 39. Ne5 {[%emt 0:00:09]} a5 {[%emt 0:00:02]} 40. Nxd7 {[%emt 0:01:10]} Rxd7 {[%emt 0:00:01]} 41. Ra2 {[%emt 0:00:01]} Ra7 {[%emt 0:00:04]} 42. d4 {[%emt 0:00:01]} Kg6 {[%emt 0:00:31]} 43. d5 {[%emt 0:00:01]} Kf6 {[%emt 0:00:08]} 44. dxc6 {[%emt 0:00:02]} Ke6 {[%emt 0:00:01]} 45. Re2+ {[%emt 0:00:02]} 1-0

[Event "FIDE Open World Rapid 2024"]
[Site "New York"]
[Date "2024.12.27"]
[Round "6.14"]
[White "Dubov, Daniil"]
[Black "Lazavik, Denis"]
[Result "1/2-1/2"]
[ECO "E05"]
[WhiteElo "2693"]
[BlackElo "2578"]
[Annotator "ChessBase"]
[PlyCount "45"]
[EventDate "2024.12.14"]
[EventType "swiss"]
[EventCountry "USA"]
[SourceTitle "playchess.com"]
[Source "ChessBase"]
[SourceQuality "1"]
[TimeControl "900+10"]

1. d4 {[%emt 0:00:04]} Nf6 {[%emt 0:00:03]} 2. Nf3 {[%emt 0:00:02]} d5 {[%emt 0:00:03]} 3. g3 {[%emt 0:00:02]} e6 {[%emt 0:00:08]} 4. Bg2 {[%emt 0:00:01]} Be7 {[%emt 0:00:03]} 5. O-O {[%emt 0:00:02]} O-O {[%emt 0:00:04]} 6. c4 {[%emt 0:00:02]} dxc4 {[%emt 0:00:03]} 7. Qa4 {[%emt 0:00:01]} a6 {[%emt 0:00:03]} 8. Qxc4 {[%emt 0:00:02]} b5 {[%emt 0:00:02]} 9. Qc2 {[%emt 0:00:01]} Bb7 {[%emt 0:00:03]} 10. Bd2 {[%emt 0:00:02]} Be4 {[%emt 0:00:17]} 11. Qc1 {[%emt 0:00:01]} c6 {[%emt 0:00:08]} 12. e3 {[%emt 0:00:09]} Nd5 {[%emt 0:00:34]} 13. Rd1 {[%emt 0:00:24]} h6 {[%emt 0:01:12]} 14. Be1 {[%emt 0:00:14]} Qc7 {[%emt 0:01:54]} 15. Nbd2 {[%emt 0:00:20]} Bh7 {[%emt 0:00:04]} 16. Nb3 {[%emt 0:00:54]} Nd7 {[%emt 0:00:13]} 17. Ba5 {[%emt 0:00:17]} Qa7 {[%emt 0:00:26]} 18. Qd2 {[%emt 0:02:15]} Rac8 {[%emt 0:00:25]} 19. Rac1 {[%emt 0:00:27]} Be4 {[%emt 0:00:37]} 20. Qe2 {[%emt 0:00:59]} c5 {[%emt 0:00:22]} 21. dxc5 {[%emt 0:00:48]} Nxc5 {[%emt 0:00:04]} 22. Nfd4 {[%emt 0:01:15]} Bxg2 {[%emt 0:00:20]} 23. Kxg2 {[%emt 0:00:02]} 1/2-1/2

[Event "FIDE Open World Rapid 2024"]
[Site "New York"]
[Date "2024.12.27"]
[Round "6.14"]
[White "Matviishen, Viktor"]
[Black "Salem, A.R. Saleh"]
[Result "1/2-1/2"]
[ECO "D85"]
[WhiteElo "2566"]
[BlackElo "2622"]
[Annotator "ChessBase"]
[PlyCount "82"]
[EventDate "2024.12.14"]
[EventType "swiss"]
[EventCountry "USA"]
[SourceTitle "playchess.com"]
[Source "ChessBase"]
[SourceQuality "1"]
[TimeControl "900+10"]

1. d4 {[%emt 0:00:02]} Nf6 {[%emt 0:00:02]} 2. c4 {[%emt 0:00:01]} g6 {[%emt 0:00:01]} 3. Nc3 {[%emt 0:00:02]} d5 {[%emt 0:00:02]} 4. cxd5 {[%emt 0:00:04]} Nxd5 {[%emt 0:00:02]} 5. e4 {[%emt 0:00:06]} Nxc3 {[%emt 0:00:02]} 6. bxc3 {[%emt 0:00:02]} Bg7 {[%emt 0:00:01]} 7. Nf3 {[%emt 0:01:36]} c5 {[%emt 0:00:02]} 8. Bb5+ {[%emt 0:00:04]} Nc6 {[%emt 0:00:02]} 9. O-O {[%emt 0:00:35]} O-O {[%emt 0:00:02]} 10. Bxc6 {[%emt 0:01:00]} bxc6 {[%emt 0:00:03]} 11. Qc2 {[%emt 0:00:01]} cxd4 {[%emt 0:00:08]} 12. cxd4 {[%emt 0:00:02]} Bg4 {[%emt 0:00:10]} 13. Ne5 {[%emt 0:00:32]} Qxd4 {[%emt 0:00:04]} 14. Bb2 {[%emt 0:00:02]} Qb4 {[%emt 0:00:04]} 15. Rab1 {[%emt 0:01:08]} Bxe5 {[%emt 0:00:03]} 16. Bxe5 {[%emt 0:00:01]} Qa5 {[%emt 0:00:01]} 17. Bc3 {[%emt 0:02:13]} Qc5 {[%emt 0:00:01]} 18. Qb2 {[%emt 0:00:18]} Qc4 {[%emt 0:00:17]} 19. Rfc1 {[%emt 0:05:08]} Qxe4 {[%emt 0:00:54]} 20. Re1 {[%emt 0:00:02]} Qf4 {[%emt 0:00:01]} 21. Rxe7 {[%emt 0:00:53]} Rab8 {[%emt 0:01:46]} 22. Rb7 {[%emt 0:00:02]} Rxb7 {[%emt 0:00:01]} 23. Qxb7 {[%emt 0:00:01]} Be6 {[%emt 0:00:01]} 24. Qxa7 {[%emt 0:01:03]} Bd5 {[%emt 0:00:02]} 25. f3 {[%emt 0:00:33]} Bxa2 {[%emt 0:00:07]} 26. Re1 {[%emt 0:00:42]} Bd5 {[%emt 0:00:04]} 27. Qe7 {[%emt 0:00:17]} f6 {[%emt 0:00:50]} 28. Qc5 {[%emt 0:01:30]} Rf7 {[%emt 0:01:09]} 29. Qf2 {[%emt 0:00:26]} Kg7 {[%emt 0:01:00]} 30. Bd2 {[%emt 0:00:02]} Qa4 {[%emt 0:00:51]} 31. h4 {[%emt 0:00:09]} h6 {[%emt 0:03:04]} 32. Bc3 {[%emt 0:00:03]} Qf4 {[%emt 0:00:30]} 33. Bd2 {[%emt 0:00:09]} Qc4 {[%emt 0:00:11]} 34. Rc1 {[%emt 0:00:19]} Qa4 {[%emt 0:00:28]} 35. Bc3 {[%emt 0:00:12]} Qf4 {[%emt 0:00:07]} 36. Bd2 {[%emt 0:00:03]} Qa4 {[%emt 0:01:16]} 37. Bc3 {[%emt 0:00:03]} g5 {[%emt 0:01:56]} 38. hxg5 {[%emt 0:00:05]} hxg5 {[%emt 0:00:02]} 39. Qe3 {[%emt 0:00:20]} Qh4 {[%emt 0:01:17]} 40. Ra1 {[%emt 0:00:40]} Qf4 {[%emt 0:02:39]} 41. Qxf4 {[%emt 0:00:11]} gxf4 {[%emt 0:00:02]} 1/2-1/2

[Event "FIDE Open World Rapid 2024"]
[Site "New York"]
[Date "2024.12.27"]
[Round "6.15"]
[White "Barbosa, Oliver"]
[Black "Batsuren, Dambasuren"]
[Result "0-1"]
[ECO "D37"]
[WhiteElo "2451"]
[BlackElo "2531"]
[Annotator "ChessBase"]
[PlyCount "110"]
[EventDate "2024.12.14"]
[EventType "swiss"]
[EventCountry "USA"]
[SourceTitle "playchess.com"]
[Source "ChessBase"]
[SourceQuality "1"]
[TimeControl "900+10"]

1. d4 {[%emt 0:00:03]} Nf6 {[%emt 0:00:03]} 2. c4 {[%emt 0:00:15]} e6 {[%emt 0:00:02]} 3. Nf3 {[%emt 0:00:03]} d5 {[%emt 0:00:07]} 4. Nc3 {[%emt 0:00:03]} a6 {[%emt 0:00:22]} 5. cxd5 {[%emt 0:01:13]} exd5 {[%emt 0:00:01]} 6. Qb3 {[%emt 0:00:19]} Bd6 {[%emt 0:07:49]} 7. Bg5 {[%emt 0:00:38]} c6 {[%emt 0:00:01]} 8. e3 {[%emt 0:00:07]} O-O {[%emt 0:01:24]} 9. Bd3 {[%emt 0:00:18]} Re8 {[%emt 0:00:36]} 10. O-O {[%emt 0:00:47]} h6 {[%emt 0:00:15]} 11. Bh4 {[%emt 0:00:11]} Nbd7 {[%emt 0:00:15]} 12. Rfe1 {[%emt 0:00:46]} Be7 {[%emt 0:00:17]} 13. Bg3 {[%emt 0:01:39]} Nh5 {[%emt 0:01:47]} 14. Be5 {[%emt 0:00:06]} Nxe5 {[%emt 0:01:40]} 15. dxe5 {[%emt 0:00:55]} Bf8 {[%emt 0:00:22]} 16. h3 {[%emt 0:00:33]} g6 {[%emt 0:00:04]} 17. Rad1 {[%emt 0:00:11]} b5 {[%emt 0:01:23]} 18. Qc2 {[%emt 0:05:11]} Ng7 {[%emt 0:00:49]} 19. Bxg6 {[%emt 0:01:04]} fxg6 {[%emt 0:00:05]} 20. Qxg6 {[%emt 0:00:02]} Re6 {[%emt 0:00:21]} 21. Qc2 {[%emt 0:00:25]} Qe8 {[%emt 0:00:30]} 22. Ne2 {[%emt 0:00:02]} Bb7 {[%emt 0:00:21]} 23. Ned4 {[%emt 0:01:08]} c5 {[%emt 0:00:07]} 24. Nxe6 {[%emt 0:00:06]} Qxe6 {[%emt 0:00:02]} 25. b4 {[%emt 0:00:05]} cxb4 {[%emt 0:00:25]} 26. Qc7 {[%emt 0:00:02]} Qc6 {[%emt 0:00:09]} 27. Qa5 {[%emt 0:00:01]} Ne6 {[%emt 0:00:11]} 28. Rc1 {[%emt 0:00:00]} Qd7 {[%emt 0:00:08]} 29. Qb6 {[%emt 0:00:09]} Rc8 {[%emt 0:00:11]} 30. Nd4 {[%emt 0:00:15]} Nc5 {[%emt 0:00:08]} 31. Qg6+ {[%emt 0:00:20]} Qg7 {[%emt 0:00:03]} 32. Qf5 {[%emt 0:00:05]} Re8 {[%emt 0:00:10]} 33. f4 {[%emt 0:00:04]} Bc8 {[%emt 0:00:06]} 34. Qh5 {[%emt 0:00:01]} Qf7 {[%emt 0:00:20]} 35. Qh4 {[%emt 0:00:03]} Nd3 {[%emt 0:00:12]} 36. Rxc8 {[%emt 0:00:10]} Rxc8 {[%emt 0:00:01]} 37. Qg4+ {[%emt 0:00:03]} Qg7 {[%emt 0:00:16]} 38. Qe6+ {[%emt 0:00:01]} Kh8 {[%emt 0:00:11]} 39. Nf5 {[%emt 0:00:01]} Qc7 {[%emt 0:00:12]} 40. Rf1 {[%emt 0:00:09]} Nc5 {[%emt 0:00:10]} 41. Qg6 {[%emt 0:00:17]} Qh7 {[%emt 0:00:09]} 42. Qg4 {[%emt 0:00:27]} h5 {[%emt 0:00:07]} 43. Qh4 {[%emt 0:01:24]} Qxf5 {[%emt 0:00:02]} 44. Rc1 {[%emt 0:00:01]} Kg8 {[%emt 0:00:24]} 45. Qg3+ {[%emt 0:00:10]} Bg7 {[%emt 0:00:04]} 46. Qh4 {[%emt 0:00:36]} Ne4 {[%emt 0:00:05]} 47. Rd1 {[%emt 0:00:07]} Nc3 {[%emt 0:00:15]} 48. Re1 {[%emt 0:00:07]} Nxa2 {[%emt 0:00:08]} 49. g4 {[%emt 0:00:15]} hxg4 {[%emt 0:00:04]} 50. hxg4 {[%emt 0:00:00]} Qe6 {[%emt 0:00:24]} 51. Kf2 {[%emt 0:00:42]} Qh6 {[%emt 0:00:06]} 52. Qg3 {[%emt 0:00:15]} Nc3 {[%emt 0:00:09]} 53. Qg2 {[%emt 0:00:11]} Qh4+ {[%emt 0:00:10]} 54. Kf1 {[%emt 0:00:01]} Ne4 {[%emt 0:00:06]} 55. Rd1 {[%emt 0:00:01]} Qg3 {[%emt 0:00:11]} 0-1

[Event "FIDE Open World Rapid 2024"]
[Site "New York"]
[Date "2024.12.27"]
[Round "6.16"]
[White "Esipenko, Andrey"]
[Black "Durarbayli, Vasif"]
[Result "1/2-1/2"]
[ECO "C84"]
[WhiteElo "2682"]
[BlackElo "2622"]
[Annotator "ChessBase"]
[PlyCount "85"]
[EventDate "2024.12.14"]
[EventType "swiss"]
[EventCountry "USA"]
[SourceTitle "playchess.com"]
[Source "ChessBase"]
[SourceQuality "1"]
[TimeControl "900+10"]

1. e4 {[%emt 0:00:02]} e5 {[%emt 0:00:01]} 2. Nf3 {[%emt 0:00:02]} Nc6 {[%emt 0:00:01]} 3. Bb5 {[%emt 0:00:06]} a6 {[%emt 0:00:01]} 4. Ba4 {[%emt 0:00:02]} Nf6 {[%emt 0:00:01]} 5. d3 {[%emt 0:00:05]} b5 {[%emt 0:00:33]} 6. Bb3 {[%emt 0:00:02]} Be7 {[%emt 0:00:01]} 7. a4 {[%emt 0:00:01]} Bb7 {[%emt 0:00:23]} 8. O-O {[%emt 0:01:33]} O-O {[%emt 0:00:14]} 9. axb5 {[%emt 0:00:14]} axb5 {[%emt 0:00:02]} 10. Rxa8 {[%emt 0:00:03]} Bxa8 {[%emt 0:00:21]} 11. Na3 {[%emt 0:00:13]} Qb8 {[%emt 0:01:24]} 12. Bg5 {[%emt 0:00:14]} h6 {[%emt 0:00:21]} 13. Bh4 {[%emt 0:00:02]} d6 {[%emt 0:00:18]} 14. c3 {[%emt 0:00:46]} Na5 {[%emt 0:01:08]} 15. Ba2 {[%emt 0:00:02]} b4 {[%emt 0:00:08]} 16. cxb4 {[%emt 0:01:57]} Qxb4 {[%emt 0:00:25]} 17. Qc2 {[%emt 0:00:02]} c5 {[%emt 0:00:52]} 18. Nc4 {[%emt 0:00:02]} Nxc4 {[%emt 0:00:44]} 19. Bxc4 {[%emt 0:00:02]} Bc6 {[%emt 0:00:07]} 20. Ra1 {[%emt 0:02:01]} Ra8 {[%emt 0:01:07]} 21. Rxa8+ {[%emt 0:00:10]} Bxa8 {[%emt 0:00:01]} 22. h3 {[%emt 0:00:09]} Bc6 {[%emt 0:00:31]} 23. b3 {[%emt 0:02:37]} Qa5 {[%emt 0:00:49]} 24. Qc1 {[%emt 0:00:04]} Kf8 {[%emt 0:00:57]} 25. Nd2 {[%emt 0:00:20]} Nh5 {[%emt 0:01:53]} 26. Bxe7+ {[%emt 0:00:09]} Kxe7 {[%emt 0:00:01]} 27. g3 {[%emt 0:00:01]} Bd7 {[%emt 0:00:17]} 28. Kh2 {[%emt 0:00:20]} Nf6 {[%emt 0:00:45]} 29. Nf1 {[%emt 0:00:40]} Qa2 {[%emt 0:00:07]} 30. Qe1 {[%emt 0:00:10]} Be6 {[%emt 0:01:03]} 31. Ne3 {[%emt 0:00:12]} Qa3 {[%emt 0:00:51]} 32. Qe2 {[%emt 0:00:27]} Kf8 {[%emt 0:01:33]} 33. Qf3 {[%emt 0:01:12]} Bxc4 {[%emt 0:00:39]} 34. Nxc4 {[%emt 0:00:03]} Qa6 {[%emt 0:00:01]} 35. Qe2 {[%emt 0:01:15]} g6 {[%emt 0:00:19]} 36. Qb2 {[%emt 0:00:10]} Kg7 {[%emt 0:00:54]} 37. f4 {[%emt 0:01:26]} Nd7 {[%emt 0:00:01]} 38. h4 {[%emt 0:01:46]} Kg8 {[%emt 0:00:29]} 39. Kg2 {[%emt 0:00:31]} Qc6 {[%emt 0:00:38]} 40. Ne3 {[%emt 0:00:57]} Qb5 {[%emt 0:00:11]} 41. Nc4 {[%emt 0:00:10]} Qc6 {[%emt 0:00:03]} 42. Ne3 {[%emt 0:00:04]} Qb5 {[%emt 0:00:01]} 43. Nc4 {[%emt 0:00:47]} 1/2-1/2